bitfinex-derivatives/quotes_BTCF0:USTF0_20251110
["timestamp","ask_amount","ask_price","bid_price","bid_amount"]
[1762809478287,0.27508835,105550.0,105540.0,1.42579207]
[1762809478489,0.27508835,105550.0,105540.0,1.66267207]
[1762809478883,0.27508835,105550.0,105540.0,1.54391221]
[1762809479497,0.00014177,105560.0,105550.0,0.0947749]
[1762809479797,0.36014177,105560.0,105550.0,0.53076259]
[1762809479982,0.36014177,105560.0,105550.0,0.64893346]
[1762809480186,0.36014177,105560.0,105550.0,0.50813756]
[1762809480386,0.36014177,105560.0,105550.0,0.74497756]
[1762809480588,0.32514177,105560.0,105550.0,1.22680239]
[1762809480787,0.32514177,105560.0,105550.0,1.46364239]
[1762809481298,0.29014177,105560.0,105550.0,1.22680239]
[1762809481483,0.0553,105580.0,105570.0,0.094757]
[1762809481683,0.3853,105580.0,105570.0,1.31711745]
[1762809481888,0.3853,105580.0,105570.0,1.45852218]
[1762809482192,0.3853,105580.0,105570.0,1.55455731]
[1762809482493,0.34274,105580.0,105570.0,1.79135731]
[1762809482690,0.33,105580.0,105570.0,1.79235731]
[1762809483488,0.01294177,105590.0,105580.0,0.094748]
[1762809483798,0.35294177,105590.0,105580.0,0.53005398]
[1762809483992,0.35294177,105590.0,105580.0,0.76681398]
[1762809484192,0.39550177,105590.0,105580.0,0.62607116]
[1762809484498,0.39550177,105590.0,105580.0,0.86283116]
[1762809484699,0.39550177,105590.0,105580.0,0.62607116]
[1762809484906,0.39550177,105590.0,105580.0,0.80871055]
[1762809485207,0.39550177,105590.0,105580.0,0.57195055]
[1762809485407,0.39550177,105590.0,105580.0,0.80871055]
[1762809485907,0.37438177,105590.0,105580.0,0.80871055]
[1762809486109,0.35294177,105590.0,105580.0,0.80871055]
[1762809486408,0.35294177,105590.0,105580.0,0.80971055]
[1762809488709,0.39550177,105590.0,105580.0,0.7036599]
[1762809488908,0.01303673,105600.0,105590.0,0.094739]
[1762809489097,0.33303673,105600.0,105590.0,0.42787877]
[1762809489304,0.37559673,105600.0,105590.0,0.57087945]
[1762809489602,0.33303673,105600.0,105590.0,0.85394438]
[1762809489807,0.23751568,105600.0,105590.0,0.61718438]
[1762809490003,0.23751568,105600.0,105590.0,0.85394438]
[1762809490311,0.23851568,105600.0,105590.0,0.85394438]
[1762809490506,0.23851568,105600.0,105590.0,0.75976264]
[1762809490801,0.23851568,105600.0,105590.0,0.52300264]
[1762809490994,0.23851568,105600.0,105590.0,0.75976264]
[1762809491200,0.25995568,105600.0,105590.0,0.52300264]
[1762809491410,0.28107568,105600.0,105590.0,0.75976264]
[1762809491706,0.28107568,105600.0,105590.0,0.52300264]
[1762809491903,0.28107568,105600.0,105590.0,0.75976264]
[1762809492102,0.28107568,105600.0,105590.0,0.52300264]
[1762809492312,0.28107568,105600.0,105590.0,0.75976264]
[1762809492702,0.23851568,105600.0,105590.0,0.90536264]
[1762809493110,0.28107568,105600.0,105590.0,0.66860264]
[1762809493401,0.05651,105600.0,105590.0,0.98992858]
[1762809493602,0.05651,105600.0,105590.0,0.75316858]
[1762809493806,0.05651,105600.0,105590.0,0.98992858]
[1762809494901,0.05724267,105600.0,105590.0,0.75316858]
[1762809495103,0.05724267,105600.0,105590.0,0.4796819]
[1762809495302,0.05724267,105600.0,105590.0,1.4079619]
[1762809495507,0.05724267,105600.0,105590.0,1.502701]
[1762809497007,0.05724267,105600.0,105590.0,1.52627825]
[1762809497209,0.05724267,105600.0,105590.0,1.43153915]
[1762809497413,0.05724267,105600.0,105590.0,0.14519871]
[1762809497609,0.05724267,105600.0,105590.0,1.16821781]
[1762809497810,0.05724267,105600.0,105590.0,1.2859768]
[1762809501312,0.05651,105600.0,105590.0,1.38067825]
[1762809503205,0.05651,105600.0,105590.0,1.61084419]
[1762809503401,0.01395,105600.0,105590.0,1.84760419]
[1762809503611,0.01395,105600.0,105590.0,1.61084419]
[1762809503909,0.01395,105600.0,105590.0,1.84760419]
[1762809504111,0.01395,105600.0,105590.0,1.61084419]
[1762809504412,0.01395,105600.0,105590.0,1.84760419]
[1762809506217,0.01395,105600.0,105590.0,1.76303825]
[1762809506411,0.01395,105600.0,105590.0,1.88170308]
[1762809506812,0.05845,105600.0,105590.0,1.64494308]
[1762809507219,0.05845,105600.0,105590.0,1.88170308]
[1762809508919,0.05845,105600.0,105590.0,1.76303825]
[1762809509119,0.05845,105600.0,105590.0,1.52627825]
[1762809509421,0.05845,105600.0,105590.0,1.88170308]
[1762809509718,0.05845,105600.0,105590.0,1.64494308]
[1762809509918,0.05845,105600.0,105590.0,1.88170308]
[1762809510113,0.05845,105600.0,105590.0,1.64494308]
[1762809510310,0.03667,105600.0,105590.0,1.72997966]
[1762809510515,0.01395,105600.0,105590.0,1.84807483]
[1762809511019,0.01395,105600.0,105590.0,1.76303825]
[1762809511317,0.01395,105600.0,105590.0,1.52627825]
[1762809511618,0.01395,105600.0,105590.0,1.76303825]
[1762809512420,0.03667,105600.0,105590.0,1.88170308]
[1762809512915,0.05845,105600.0,105590.0,1.88170308]
[1762809513111,0.05845,105600.0,105590.0,1.64494308]
[1762809515715,0.05918267,105600.0,105590.0,0.71666308]
[1762809516215,0.05918267,105600.0,105590.0,1.52615825]
[1762809517622,0.05918267,105600.0,105590.0,0.59799825]
[1762809517923,0.05918267,105600.0,105590.0,1.31035797]
[1762809518924,0.05918267,105600.0,105590.0,1.37198069]
[1762809519117,0.05918267,105600.0,105590.0,1.34747942]
[1762809519428,0.05918267,105600.0,105590.0,1.26230603]
[1762809519621,0.05918267,105600.0,105590.0,1.35651435]
[1762809519819,0.05845,105600.0,105590.0,1.4512158]
[1762809520221,0.05845,105600.0,105590.0,1.57045607]
[1762809521124,0.05845,105600.0,105590.0,1.4512158]
[1762809522315,0.05845,105600.0,105590.0,1.57045607]
[1762809522731,0.01395,105600.0,105590.0,1.57045607]
[1762809523022,0.001,105600.0,105590.0,2.03797479]
[1762809523329,0.01475,105600.0,105590.0,1.91873452]
[1762809523830,0.03747,105600.0,105590.0,1.91873452]
[1762809524024,0.03747,105600.0,105590.0,1.68197452]
[1762809524422,0.03747,105600.0,105590.0,1.8335758]
[1762809524621,0.01475,105600.0,105590.0,1.8335758]
[1762809525527,0.01475,105600.0,105590.0,1.5968158]
[1762809525924,0.01475,105600.0,105590.0,1.71605607]
[1762809526832,0.03747,105600.0,105590.0,1.71605607]
[1762809527127,0.01475,105600.0,105590.0,1.5968158]
[1762809527628,0.05925,105600.0,105590.0,1.5968158]
[1762809527926,0.01475,105600.0,105590.0,1.5968158]
[1762809528732,0.01309177,105610.0,105590.0,1.78576312]
[1762809529028,0.01309177,105610.0,105600.0,0.18893832]
[1762809529217,0.01309177,105610.0,105600.0,0.36040492]
[1762809529416,0.01309177,105610.0,105600.0,0.50264539]
[1762809529621,0.01309177,105610.0,105600.0,0.59733787]
[1762809530428,0.01409177,105610.0,105600.0,0.59733787]
[1762809531132,0.01509177,105610.0,105600.0,0.59733787]
[1762809531632,0.01509177,105610.0,105600.0,0.42936709]
[1762809532221,0.01509177,105610.0,105600.0,0.61778373]
[1762809532424,0.05848,105620.0,105610.0,0.094721]
[1762809532628,0.05848,105620.0,105610.0,0.40449032]
[1762809532827,0.05848,105620.0,105610.0,1.47446269]
[1762809533140,0.05921267,105620.0,105610.0,1.56915517]
[1762809533429,0.05921267,105620.0,105610.0,1.57045296]
[1762809533629,0.06221267,105620.0,105610.0,1.57045296]
[1762809534223,0.06521267,105620.0,105610.0,1.57045296]
[1762809534640,0.06221267,105620.0,105610.0,1.57045296]
[1762809534932,0.05921267,105620.0,105610.0,1.57245296]
[1762809535329,0.05921267,105620.0,105610.0,1.45329831]
[1762809535934,0.05921267,105620.0,105610.0,1.5304881]
[1762809543538,0.05921267,105620.0,105610.0,0.6023282]
[1762809543730,0.05921267,105620.0,105610.0,1.43615988]
[1762809543930,0.05921267,105620.0,105610.0,1.36575637]
[1762809544131,0.05921267,105620.0,105610.0,1.223944]
[1762809544744,0.05921267,105620.0,105610.0,1.221944]
[1762809544982,0.05921267,105620.0,105610.0,1.3166651]
[1762809545647,0.06021267,105620.0,105610.0,1.3166651]
[1762809545841,0.06021267,105620.0,105610.0,1.221944]
[1762809546442,0.06121267,105620.0,105610.0,1.221944]
[1762809546841,0.06121267,105620.0,105610.0,1.22191432]
[1762809547741,0.06121267,105620.0,105610.0,0.12250589]
[1762809547742,0.25010341,105620.0,105610.0,0.12250589]
[1762809548038,0.1498111,105610.0,105600.0,0.92822177]
[1762809548345,0.15200913,105610.0,105600.0,0.92822177]
[1762809549042,0.04605803,105610.0,105600.0,1.26748915]
[1762809549240,0.04586,105620.0,105610.0,0.1509011]
[1762809549447,0.04805803,105620.0,105610.0,0.24507974]
[1762809549748,0.04705803,105620.0,105610.0,0.38746832]
[1762809550043,0.04605803,105620.0,105610.0,0.38746832]
[1762809550241,0.02502803,105620.0,105610.0,0.38746832]
[1762809552242,0.04400177,105630.0,105620.0,0.1508921]
[1762809552447,0.0461998,105630.0,105620.0,0.33013921]
[1762809553348,0.0471998,105630.0,105620.0,0.33013921]
[1762809553649,0.0033398,105630.0,105620.0,0.48103155]
[1762809554149,0.0023398,105630.0,105620.0,0.48103155]
[1762809554849,0.0023398,105630.0,105620.0,0.49390111]
[1762809555643,0.0461998,105630.0,105620.0,0.39918901]
[1762809556168,0.0461998,105630.0,105620.0,0.61299364]
[1762809556950,0.0461998,105630.0,105620.0,0.39918901]
[1762809557550,0.0461998,105630.0,105620.0,0.51827752]
[1762809558751,0.0593298,105630.0,105620.0,0.31657433]
[1762809559045,0.0593298,105630.0,105620.0,0.32941433]
[1762809559448,0.1540329,105630.0,105620.0,0.32941433]
[1762809559749,0.1540329,105630.0,105620.0,0.30450446]
[1762809559750,0.0481998,105630.0,105620.0,0.30450446]
[1762809559942,0.0481998,105630.0,105620.0,0.39921656]
[1762809560855,0.0471998,105630.0,105620.0,0.30450446]
[1762809561044,0.0471998,105630.0,105620.0,0.39921656]
[1762809561441,0.0471998,105630.0,105620.0,0.48428384]
[1762809562145,0.0023398,105630.0,105620.0,0.49389111]
[1762809562350,0.00014177,105630.0,105620.0,0.49389111]
[1762809564950,1.77e-06,105630.0,105620.0,0.58806975]
[1762809565144,0.1504744,105670.0,105660.0,0.04363]
[1762809565343,0.24685107,105670.0,105660.0,0.04363]
[1762809565852,0.24685107,105670.0,105660.0,0.02123]
[1762809566450,0.1504462,105660.0,105650.0,0.04377177]
[1762809566752,0.15264423,105660.0,105650.0,0.04377177]
[1762809567656,0.24682287,105660.0,105650.0,0.00014177]
[1762809568157,0.24682287,105660.0,105650.0,0.08520905]
[1762809568360,0.24682287,105660.0,105650.0,0.00014177]
[1762809568654,0.24982287,105660.0,105650.0,0.00014177]
[1762809568855,0.25182287,105660.0,105650.0,0.00014177]
[1762809569242,0.24882287,105660.0,105650.0,0.00014177]
[1762809569442,0.1484452,105650.0,105640.0,0.08506728]
[1762809569650,0.24482187,105650.0,105640.0,0.08506728]
[1762809569851,0.1509341,105640.0,105630.0,0.32008799]
[1762809570156,0.15313213,105640.0,105630.0,0.22339948]
[1762809570553,0.15313213,105640.0,105630.0,0.17977038]
[1762809571141,0.15313213,105640.0,105630.0,0.08506728]
[1762809571346,0.15313213,105640.0,105630.0,0.10629728]
[1762809571755,0.24731077,105640.0,105630.0,0.08506728]
[1762809572252,0.1505031,105630.0,105620.0,0.23641391]
[1762809572447,0.15270113,105630.0,105620.0,0.24925391]
[1762809572644,0.02369803,105630.0,105620.0,0.25836527]
[1762809572848,0.04767,105640.0,105630.0,0.1511731]
[1762809573049,0.04986803,105640.0,105630.0,0.24535174]
[1762809573250,0.05086803,105640.0,105630.0,0.24535174]
[1762809574961,0.04486803,105640.0,105630.0,0.33041902]
[1762809576258,0.04486803,105640.0,105630.0,0.42459766]
[1762809576749,0.04486803,105640.0,105630.0,0.33041902]
[1762809577459,0.00014177,105650.0,105640.0,0.1511641]
[1762809577763,0.0023398,105650.0,105640.0,0.24534274]
[1762809578361,0.00014177,105650.0,105640.0,0.24534274]
[1762809578557,0.00014177,105650.0,105640.0,0.34000833]
[1762809578864,0.00214177,105650.0,105640.0,0.34000833]
[1762809580167,0.00214177,105650.0,105640.0,0.42507561]
[1762809580762,0.00114177,105650.0,105640.0,0.42507561]
[1762809581360,0.00014177,105650.0,105640.0,0.42507561]
[1762809581764,0.00014177,105650.0,105640.0,0.34000833]
[1762809582557,0.0238398,105650.0,105640.0,0.24531423]
[1762809582763,0.150785,105650.0,105640.0,0.23566239]
[1762809582962,0.0560998,105650.0,105640.0,0.14148375]
[1762809583261,0.0560998,105650.0,105640.0,0.23566239]
[1762809583468,0.0450098,105650.0,105640.0,0.23566239]
[1762809583767,0.139695,105650.0,105640.0,0.23566239]
[1762809583967,0.140695,105650.0,105640.0,0.23566239]
[1762809584466,0.141695,105650.0,105640.0,0.23566239]
[1762809585169,0.141695,105650.0,105640.0,0.26966789]
[1762809585572,0.141695,105650.0,105640.0,0.15064864]
[1762809585872,0.0470098,105650.0,105640.0,0.36436199]
[1762809586178,0.141695,105650.0,105640.0,0.26966789]
[1762809586363,0.152785,105650.0,105640.0,0.24767207]
[1762809586559,0.152785,105650.0,105640.0,0.12865282]
[1762809587169,0.152785,105650.0,105640.0,0.14149282]
[1762809587668,0.0470098,105650.0,105640.0,0.33036556]
[1762809587875,0.0470098,105650.0,105640.0,0.24534274]
[1762809588375,0.0470098,105650.0,105640.0,0.33036556]
[1762809590471,0.00214177,105650.0,105640.0,0.33036556]
[1762809590668,0.00214177,105650.0,105640.0,0.33999937]
[1762809590872,0.00214177,105650.0,105640.0,0.4817585]
[1762809591568,0.00114177,105650.0,105640.0,0.56678132]
[1762809591965,0.00014177,105650.0,105640.0,0.56678132]
[1762809592173,0.00014177,105650.0,105640.0,0.4817585]
[1762809592776,0.00014177,105650.0,105640.0,0.56678132]
[1762809593275,0.00014177,105650.0,105640.0,0.4817585]
[1762809593965,1.77e-06,105650.0,105640.0,0.56678132]
[1762809594179,0.1527798,105690.0,105680.0,0.04509]
[1762809594374,0.15497783,105690.0,105680.0,0.15205864]
[1762809594678,0.06032803,105690.0,105680.0,0.15205864]
[1762809594876,0.06032803,105690.0,105680.0,0.05788]
[1762809595071,0.15497733,105690.0,105680.0,0.05788]
[1762809595271,0.15997733,105690.0,105680.0,0.05888]
[1762809595975,0.05175803,105690.0,105680.0,0.13395935]
[1762809596480,0.05575803,105690.0,105680.0,0.13495935]
[1762809596676,0.15040733,105690.0,105680.0,0.13495935]
[1762809597882,0.15040733,105690.0,105680.0,0.05988]
[1762809598981,0.15040733,105690.0,105680.0,0.1545383]
[1762809600082,0.15040733,105690.0,105680.0,0.05988]
[1762809600379,0.05575803,105690.0,105680.0,0.05988]
[1762809600568,0.03282803,105690.0,105680.0,0.32698848]
[1762809600774,0.15008733,105690.0,105680.0,0.23233018]
[1762809600979,0.15008733,105690.0,105680.0,0.1545383]
[1762809601191,0.15008733,105690.0,105680.0,0.32698848]
[1762809601381,0.15008733,105690.0,105680.0,0.23233018]
[1762809602878,0.15008733,105690.0,105680.0,0.05988]
[1762809605381,0.15008733,105690.0,105680.0,0.13550451]
[1762809605584,0.15008733,105690.0,105680.0,0.30795469]
[1762809606189,0.01119803,105690.0,105680.0,0.40261299]
[1762809607381,0.009,105690.0,105680.0,0.58225661]
[1762809607686,0.009,105690.0,105680.0,0.72338078]
[1762809607883,0.004,105690.0,105680.0,0.72238078]
[1762809608085,0.008,105690.0,105680.0,0.72238078]
[1762809608585,0.008,105690.0,105680.0,1.65002078]
[1762809608980,0.007,105690.0,105680.0,1.62655938]
[1762809609486,0.004,105690.0,105680.0,1.71137427]
[1762809609690,0.00014177,105700.0,105690.0,0.05757]
[1762809609890,0.0023398,105700.0,105690.0,0.1750758]
[1762809610086,0.0464098,105700.0,105690.0,0.1750758]
[1762809610287,0.0464098,105700.0,105690.0,0.25989069]
[1762809610484,0.0464098,105700.0,105690.0,0.1750758]
[1762809610686,0.1440502,105700.0,105690.0,0.1750758]
[1762809610886,0.0544098,105700.0,105690.0,0.1750758]
[1762809611087,0.0103398,105700.0,105690.0,0.2697251]
[1762809611293,0.0103398,105700.0,105690.0,0.35453999]
[1762809611677,0.00814177,105700.0,105690.0,0.4964823]
[1762809612282,0.00814177,105700.0,105690.0,0.59109415]
[1762809614597,0.00814177,105700.0,105690.0,0.73669415]
[1762809616396,0.1513844,105730.0,105720.0,0.04497]
[1762809616590,0.05896803,105730.0,105720.0,0.1750758]
[1762809616999,0.04626803,105730.0,105720.0,0.24551816]
[1762809617198,0.04626803,105730.0,105720.0,0.34014066]
[1762809617785,0.04626803,105730.0,105720.0,0.24551816]
[1762809617990,0.14088163,105730.0,105720.0,0.24551816]
[1762809618497,0.14088163,105730.0,105720.0,0.25907985]
[1762809618698,0.14588163,105730.0,105720.0,0.25907985]
[1762809618900,0.14988163,105730.0,105720.0,0.33552335]
[1762809619401,0.25236571,105730.0,105720.0,0.18397927]
[1762809619692,0.15839153,105730.0,105720.0,0.22992927]
[1762809620089,0.06254803,105730.0,105720.0,0.07347169]
[1762809620285,0.05526803,105730.0,105720.0,0.35604235]
[1762809622197,0.05526803,105730.0,105720.0,0.26141985]
[1762809622500,0.05526803,105730.0,105720.0,0.43296275]
[1762809623702,0.03265803,105730.0,105720.0,0.43296275]
[1762809624189,0.05413803,105730.0,105720.0,0.43296275]
[1762809624393,0.05413803,105730.0,105720.0,0.5746685]
[1762809625003,0.14875163,105730.0,105720.0,0.480046]
[1762809625197,0.05413803,105730.0,105720.0,0.480046]
[1762809625501,0.14875163,105730.0,105720.0,0.480046]
[1762809625704,0.05413803,105730.0,105720.0,0.480046]
[1762809626002,0.05413803,105730.0,105720.0,0.5746686]
[1762809626903,0.05413803,105730.0,105720.0,0.480046]
[1762809627195,0.05413803,105730.0,105720.0,0.5746686]
[1762809627395,0.05413803,105730.0,105720.0,0.480046]
[1762809627600,0.05413803,105730.0,105720.0,0.5746686]
[1762809628693,0.03265803,105730.0,105720.0,0.5746686]
[1762809630592,0.009,105730.0,105720.0,0.66864268]
[1762809630997,0.009,105730.0,105720.0,0.75345757]
[1762809631804,0.006,105730.0,105720.0,0.75345757]
[1762809632007,0.003,105730.0,105720.0,0.75345757]
[1762809633802,0.003,105730.0,105720.0,0.65883497]
[1762809634008,0.003,105730.0,105720.0,0.75345757]
[1762809634403,0.003,105730.0,105720.0,0.5746686]
[1762809634805,0.003,105730.0,105720.0,0.66864268]
[1762809635712,0.003,105730.0,105720.0,0.480046]
[1762809636013,0.003,105730.0,105720.0,0.5746686]
[1762809636204,0.00519803,105730.0,105720.0,0.5746686]
[1762809636399,0.00519803,105730.0,105720.0,0.480046]
[1762809636605,0.00519803,105730.0,105720.0,0.66864268]
[1762809637211,0.00519803,105730.0,105720.0,0.5746686]
[1762809637413,0.00519803,105730.0,105720.0,0.66864268]
[1762809637907,0.04774803,105730.0,105720.0,0.480046]
[1762809638307,0.14236173,105730.0,105720.0,0.480046]
[1762809638514,0.14236173,105730.0,105720.0,0.56486089]
[1762809639516,0.14236173,105730.0,105720.0,0.480046]
[1762809640213,0.04774803,105730.0,105720.0,0.5746686]
[1762809640415,0.14236173,105730.0,105720.0,0.480046]
[1762809641214,0.04774803,105730.0,105720.0,0.65948349]
[1762809642511,0.14236173,105730.0,105720.0,0.65948349]
[1762809643511,0.04774803,105730.0,105720.0,0.65948349]
[1762809644016,0.14236173,105730.0,105720.0,0.65948349]
[1762809644610,0.14236173,105730.0,105720.0,0.56486089]
[1762809645417,0.04774803,105730.0,105720.0,0.65948349]
[1762809646210,0.04774803,105730.0,105720.0,0.5746686]
[1762809646409,0.04774803,105730.0,105720.0,0.69368785]
[1762809647117,0.00519803,105730.0,105720.0,0.78766193]
[1762809647312,0.00519803,105730.0,105720.0,0.69368785]
[1762809648019,0.02626803,105730.0,105720.0,0.69368785]
[1762809648518,0.02626803,105730.0,105720.0,0.59906525]
[1762809648718,0.14236173,105730.0,105720.0,0.59906525]
[1762809650807,0.25008581,105730.0,105720.0,0.22146471]
[1762809651117,0.25008581,105730.0,105720.0,0.01356169]
[1762809651318,0.1534026,105720.0,105710.0,0.22385847]
[1762809651509,0.24957471,105720.0,105710.0,0.22385847]
[1762809651710,0.24957471,105720.0,105710.0,0.13882585]
[1762809652612,0.25057471,105720.0,105710.0,0.13882585]
[1762809652822,0.15660063,105720.0,105710.0,0.13882585]
[1762809654620,0.25057471,105720.0,105710.0,0.13882585]
[1762809656115,0.25057471,105720.0,105710.0,0.15154828]
[1762809657910,0.34454879,105720.0,105710.0,0.0128642]
[1762809658110,0.25057471,105720.0,105710.0,0.09789682]
[1762809658314,0.25057471,105720.0,105710.0,0.0128642]
[1762809658822,0.25057471,105720.0,105710.0,0.0358442]
[1762809659517,0.25057471,105720.0,105710.0,0.0128642]
[1762809660621,0.25057471,105720.0,105710.0,0.12981828]
[1762809660816,0.25057471,105720.0,105710.0,0.24747988]
[1762809661022,0.25057471,105720.0,105710.0,0.15284828]
[1762809661515,0.15660063,105720.0,105710.0,0.24747988]
[1762809661709,0.14285063,105720.0,105710.0,0.26142988]
[1762809662415,0.02538803,105720.0,105710.0,0.35540396]
[1762809662615,0.00319803,105720.0,105710.0,0.44043658]
[1762809662822,0.00319803,105720.0,105710.0,0.47442321]
[1762809663214,0.001,105720.0,105710.0,0.47442321]
[1762809664811,0.001,105720.0,105710.0,0.56901716]
[1762809666621,0.001,105720.0,105710.0,0.7117677]
[1762809667021,0.13893954,105740.0,105730.0,0.05883]
[1762809667219,0.13893954,105740.0,105730.0,0.24677816]
[1762809667220,0.02359207,105740.0,105730.0,0.24677816]
[1762809667611,0.14113677,105740.0,105730.0,0.24677816]
[1762809668324,0.14613677,105740.0,105730.0,0.24677816]
[1762809668731,0.14613677,105740.0,105730.0,0.15280408]
[1762809668920,0.14613677,105740.0,105730.0,0.15278411]
[1762809670922,0.14613677,105740.0,105730.0,0.24739781]
[1762809671625,0.05153207,105740.0,105730.0,0.24739781]
[1762809672526,0.05153207,105740.0,105730.0,0.15278411]
[1762809672730,0.15880677,105740.0,105730.0,0.13996411]
[1762809673229,0.15880677,105740.0,105730.0,0.1309218]
[1762809674731,0.25276088,105740.0,105730.0,0.0849118]
[1762809674929,0.25276088,105740.0,105720.0,0.12292313]
[1762809674930,0.1515237,105730.0,105720.0,0.12292313]
[1762809675125,0.15372173,105730.0,105720.0,0.12292313]
[1762809675324,0.1515326,105720.0,105710.0,0.157736]
[1762809675532,0.15373063,105720.0,105710.0,0.0358442]
[1762809676024,0.15373063,105720.0,105710.0,0.0588742]
[1762809677332,0.15573063,105720.0,105710.0,0.0588742]
[1762809678131,0.15573063,105720.0,105710.0,0.13270619]
[1762809678432,0.15673063,105720.0,105710.0,0.04615177]
[1762809678827,0.15673063,105720.0,105710.0,0.13106357]
[1762809679220,0.15673063,105720.0,105710.0,0.22501768]
[1762809679427,0.15673063,105720.0,105710.0,0.13106357]
[1762809680424,0.15673063,105720.0,105710.0,0.14401583]
[1762809681535,0.15673063,105720.0,105710.0,0.05910403]
[1762809681935,0.15673063,105720.0,105710.0,0.22740465]
[1762809682928,0.15673063,105720.0,105710.0,0.32203625]
[1762809683237,0.14406063,105720.0,105710.0,0.33504625]
[1762809683740,0.14352063,105720.0,105710.0,0.33504625]
[1762809684841,0.14352063,105720.0,105710.0,0.24041465]
[1762809685230,0.14352063,105720.0,105710.0,0.33504625]
[1762809685539,0.02644803,105720.0,105710.0,0.33504625]
[1762809685833,0.13839874,105740.0,105730.0,0.05635]
[1762809686041,0.13839874,105740.0,105730.0,0.15030411]
[1762809686042,0.14059677,105740.0,105730.0,0.15030411]
[1762809686340,0.09689677,105740.0,105730.0,0.32984912]
[1762809686936,0.14059677,105740.0,105730.0,0.32984912]
[1762809687137,0.14059677,105740.0,105730.0,0.23523542]
[1762809687337,0.14459677,105740.0,105730.0,0.23523542]
[1762809688040,0.14759677,105740.0,105730.0,0.23523542]
[1762809688240,0.12514677,105740.0,105730.0,0.23523542]
[1762809688447,0.14759677,105740.0,105730.0,0.23523542]
[1762809688841,0.05299207,105740.0,105730.0,0.32984912]
[1762809689641,0.05299207,105740.0,105730.0,0.23523542]
[1762809689841,0.14759677,105740.0,105730.0,0.23523542]
[1762809690044,0.05299207,105740.0,105730.0,0.23523542]
[1762809690245,0.00929207,105740.0,105730.0,0.23523542]
[1762809690849,0.00709404,105740.0,105730.0,0.24491781]
[1762809691046,0.00709404,105740.0,105730.0,0.32984912]
[1762809691849,0.00709404,105740.0,105730.0,0.23523542]
[1762809692150,0.14359677,105740.0,105730.0,0.23523542]
[1762809696553,0.14359677,105740.0,105730.0,0.15030411]
[1762809696752,0.14359677,105740.0,105730.0,0.23515379]
[1762809697144,0.15512677,105740.0,105730.0,0.23515379]
[1762809698146,0.15512677,105740.0,105730.0,0.15030411]
[1762809699749,0.15512677,105740.0,105730.0,0.04487]
[1762809700248,0.15512677,105740.0,105730.0,0.1394837]
[1762809701458,0.15512677,105740.0,105730.0,0.24644781]
[1762809702061,0.06052207,105740.0,105730.0,0.24644781]
[1762809702449,0.15512677,105740.0,105730.0,0.24644781]
[1762809703361,0.15512677,105740.0,105730.0,0.15183411]
[1762809705851,0.15512677,105740.0,105730.0,0.23668379]
[1762809706558,0.00529207,105740.0,105730.0,0.33129749]
[1762809706862,0.14359677,105740.0,105730.0,0.23668379]
[1762809707761,0.14359677,105740.0,105730.0,0.33129749]
[1762809707959,0.14359677,105740.0,105730.0,0.23668379]
[1762809708260,0.15650677,105740.0,105730.0,0.22367379]
[1762809709765,0.15450677,105740.0,105730.0,0.22467379]
[1762809710158,0.14059677,105740.0,105730.0,0.33252749]
[1762809710762,0.14159677,105740.0,105730.0,0.33152749]
[1762809711163,0.14159677,105740.0,105730.0,0.36569706]
[1762809711468,0.14059677,105740.0,105730.0,0.36669706]
[1762809711660,0.14059677,105740.0,105730.0,0.36769706]
[1762809713171,0.14059677,105740.0,105730.0,0.27308336]
[1762809713356,0.15282677,105740.0,105730.0,0.26412521]
[1762809713556,0.15282677,105740.0,105730.0,0.23906007]
[1762809713766,0.14059677,105740.0,105730.0,0.23906007]
[1762809714669,0.14159677,105740.0,105730.0,0.23706007]
[1762809716566,0.14059677,105740.0,105730.0,0.23806007]
[1762809716966,0.14059677,105740.0,105730.0,0.14410596]
[1762809717169,0.14059677,105740.0,105730.0,0.23906007]
[1762809717669,0.14059677,105740.0,105730.0,0.23806007]
[1762809717868,0.14059677,105740.0,105730.0,0.23906007]
[1762809718160,0.14059677,105740.0,105730.0,0.15406411]
[1762809718358,0.14059677,105740.0,105730.0,0.15306411]
[1762809718760,0.14059677,105740.0,105730.0,0.23817313]
[1762809718960,0.14059677,105740.0,105730.0,0.15306411]
[1762809719562,0.14159677,105740.0,105730.0,0.15206411]
[1762809720662,0.24778088,105740.0,105730.0,0.04487]
[1762809720859,0.1519737,105730.0,105720.0,0.08511501]
[1762809721059,0.24812584,105730.0,105720.0,0.08511501]
[1762809721559,0.1513026,105720.0,105710.0,0.13200054]
[1762809721758,0.15350063,105720.0,105710.0,0.13200054]
[1762809721965,0.15350063,105720.0,105710.0,0.21711242]
[1762809722857,0.15350063,105720.0,105710.0,0.19393242]
[1762809723060,0.24545474,105720.0,105710.0,0.17255242]
[1762809723255,0.24545474,105720.0,105710.0,0.08744054]
[1762809723970,0.1513116,105710.0,105700.0,0.08511188]
[1762809724159,0.24746374,105710.0,105700.0,0.10649188]
[1762809724359,0.24746374,105710.0,105700.0,0.0972838]
[1762809724561,0.24746374,105710.0,105700.0,0.01217192]
[1762809724768,0.1499406,105700.0,105690.0,0.12981365]
[1762809724967,0.15213863,105700.0,105690.0,0.12981365]
[1762809725161,0.15213863,105700.0,105690.0,0.04470177]
[1762809725369,0.24609274,105700.0,105690.0,0.04470177]
[1762809725765,0.24609274,105700.0,105690.0,0.02152177]
[1762809725972,0.24509274,105700.0,105690.0,0.09867585]
[1762809726276,0.24509274,105700.0,105690.0,0.02352177]
[1762809726470,0.15113863,105700.0,105690.0,0.04670177]
[1762809726671,0.15113863,105700.0,105690.0,0.04770177]
[1762809726965,0.24509274,105700.0,105690.0,0.04770177]
[1762809727167,0.24509274,105700.0,105690.0,0.03624759]
[1762809727470,0.24509274,105700.0,105690.0,0.01486759]
[1762809728470,0.24509274,105700.0,105690.0,0.00314177]
[1762809728873,0.1506495,105690.0,105680.0,0.0766617]
[1762809729073,0.1506495,105690.0,105670.0,0.31842991]
[1762809729074,0.1520185,105680.0,105670.0,0.31842991]
[1762809729371,0.02492803,105680.0,105670.0,0.24662913]
[1762809729568,0.00219803,105680.0,105670.0,0.24662913]
[1762809729762,0.04596803,105680.0,105670.0,0.24662913]
[1762809729968,0.14062653,105680.0,105670.0,0.24662913]
[1762809730275,0.0437007,105680.0,105670.0,0.26374533]
[1762809731574,0.0437007,105680.0,105670.0,0.26674533]
[1762809732380,0.0437007,105680.0,105670.0,0.17207793]
[1762809732381,0.1383592,105680.0,105670.0,0.17207793]
[1762809732677,0.1383592,105680.0,105670.0,0.26674533]
[1762809732876,0.1383592,105680.0,105670.0,0.24468688]
[1762809733175,0.1383592,105680.0,105670.0,0.24168688]
[1762809733176,0.1393592,105680.0,105670.0,0.24168688]
[1762809735765,0.1521692,105680.0,105670.0,0.13428515]
[1762809735972,0.24626093,105680.0,105670.0,0.22837688]
[1762809736288,0.24626093,105680.0,105670.0,0.24168688]
[1762809736976,0.34035266,105680.0,105670.0,0.13428515]
[1762809737479,0.24626093,105680.0,105670.0,0.13428515]